Cogmind - Beta 13 @@@ ROGUE MODE // 2024.05.05 @ 18:06:27 Player: Faunarr Result: Destroyed by D-53 Grenadier with Mini Grenade Launcher Performance ------------- Evolutions (1) 500 Regions Visited (3) 600 Robots Destroyed (21) 105 Value Destroyed (521) 521 Prototype IDs (1) 20 Alien Tech Used (0) 0 Bonus (0) 0 TOTAL SCORE: 1746 Bonus ------- None Cogmind --------- Core Integrity 0/400 Matter 290/300 Energy 48/100 System Corruption 3% Temperature Cool (0) Movement Rolling (95) Ox1 Location -9/Mines Parts ------- > --- POWER (1) -------- (None) > --- PROPULSION (2) --- Wheel Improved VTOL Module > --- UTILITY (4) ------ Large Storage Unit > --- WEAPON (2) ------- (None) > --- INVENTORY (15) --- Ion Engine Light Ion Engine Deuterium Engine Light Treads Improved VTOL Module Improved VTOL Module Improved VTOL Module Medium Matter Pod (100) Improved Terrain Scanner Katana Peak State ------------ > --- POWER ------------ Ion Engine > --- PROPULSION ------- Compact Wheel Improved VTOL Module > --- UTILITY ---------- Large Storage Unit Seismic Detector Shield Generator > --- WEAPON ----------- High-powered Shotgun High-powered Shotgun > --- INVENTORY -------- Ion Engine Light Ion Engine Deuterium Engine Deuterium Engine Light Treads Wheel Wheel Improved VTOL Module Improved VTOL Module Improved VTOL Module Medium Matter Pod Improved Terrain Scanner Shield Generator Light Assault Rifle Katana [Rating: 19] Favorites ----------- Power Ion Engine Engine Ion Engine Propulsion Compact Wheel Treads Light Treads Wheel Compact Wheel Flight Unit Improved VTOL Module Utility Seismic Detector Device Seismic Detector Storage Large Storage Unit Weapon Light Assault Rifle Ballistic Gun Light Assault Rifle Build | -11 -10 -9 -9 ------- Run | Yrd Mat Mat Min Slots Evolved 2 | . . 2 . Power . | . . . . Propulsion . | . . . . Utility 2 | . . 2 . Weapon . | . . . . Parts Attached 20 | 8 1 5 6 Power 4 | 2 . 1 1 Engine 4 | 2 . 1 1 Core . | . . . . Reactor . | . . . . Propulsion 5 | 2 . 1 2 Treads 1 | 1 . . . Leg . | . . . . Wheel 3 | 1 . . 2 Hover . | . . . . Flight 1 | . . 1 . Utility 5 | 2 1 1 1 Device 3 | 1 . 1 1 Storage 2 | 1 1 . . Processor . | . . . . Hackware . | . . . . Protection . | . . . . Artifact . | . . . . Weapon 6 | 2 . 2 2 Energy Gun . | . . . . Energy Cannon . | . . . . Ballistic Gun 6 | 2 . 2 2 Ballistic Cannon . | . . . . Launcher . | . . . . Special Weapon . | . . . . Impact Weapon . | . . . . Slashing Weapon . | . . . . Piercing Weapon . | . . . . Special Melee Weapon . | . . . . Unidentified Prototypes 1 | . . 1 . Parts Lost 13 | . . 3 10 Power 3 | . . 1 2 Propulsion 3 | . . 1 2 Utility 3 | . . . 3 Weapon 4 | . . 1 3 Highest Loss Streak 10 | . . 3 10 To Critical Strikes . | . . . . Average Slot Usage (%) 88 | . 100 79 81 Engine 11 | . 14 9 10 Treads 7 | . 14 5 . Wheel 11 | . 14 11 10 Flight 3 | . . 1 11 Device 17 | . 14 22 19 Storage 12 | . 14 11 11 Ballistic Gun 22 | . 28 18 20 Naked Turns . | . . . . Heaviest Build 35 | 13 28 34 35 Greatest Support 20 | 20 16 16 16 Greatest Overweight (x) 3 | . 1 2 3 Average Overweight (x) . | . . 1 1 Largest Inventory Capacity 15 | 8 15 15 15 Average Capacity 11 | 7 8 15 15 Most Carried 15 | 6 8 15 15 Average Carried 9 | 4 7 9 14 Final Capacity 15 | 8 15 15 15 Final Carried 15 | 6 8 15 10 Class Distribution -------------------- 100% | Mutant Dominant Class ---------------- Mutant | -10/Materials Mutant | -9/Materials Mutant | -9/Mines Resources | -11 -10 -9 -9 ----------- Run | Yrd Mat Mat Min Matter Collected 676 | 295 67 139 175 Remotely . | . . . . Salvage Created 861 | 160 342 256 103 Parts 46 | 8 17 18 3 Haulers Intercepted 1 | . 1 . . Recyclers Shooed 1 | 1 . . . Parts Field Recycled . | . . . . Retrieved Matter . | . . . . Parts Self-Destructed . | . . . . Prevented . | . . . . Kills | -11 -10 -9 -9 ------- Run | Yrd Mat Mat Min Combat Hostiles Destroyed 18 | . 6 6 6 Guns 18 | . 6 6 6 Classes Destroyed 9 | 2 4 2 1 Worker 1 | . 1 . . Tunneler 3 | 3 . . . Hauler 1 | . 1 . . Recycler 2 | 1 1 . . Swarmer 3 | . 3 . . Grunt 7 | . 3 3 1 Duelist 2 | . . 1 1 Sentry 2 | . . 2 . Assembled 4 | . . . 4 Best Kill Streak 5 | 3 3 5 4 Combat Bots Only 5 | . 3 5 4 Max Kills in Single Turn 2 | 1 1 1 2 Gunslinging . | . . . . Exploded . | . . . . Melee . | . . . . Uniques/NPCs Destroyed . | . . . . Combat | -11 -10 -9 -9 -------- Run | Yrd Mat Mat Min Hostile Shots Fired 114 | . 36 25 53 Missed 36 | . 12 8 16 Damage Taken 1551 | . 311 206 1034 Core 467 | . 67 36 364 Absorbed by Shields 277 | . . 77 200 Core Remaining (%) 86 | 100 73 . . Volleys Fired 78 | 12 32 15 19 Largest 2 | 2 2 2 2 Hottest 50 | 40 40 50 50 Shots Fired 143 | 24 64 22 33 Gun 143 | 24 64 22 33 Cannon . | . . . . Launcher . | . . . . Special . | . . . . Kinetic 143 | 24 64 22 33 Thermal . | . . . . Explosive . | . . . . Electromagnetic . | . . . . Robot Hit Streak 15 | 4 11 15 4 Robot Miss Streak 4 | 2 3 4 4 Penetration Max . | . . . . Secondary Targets 4 | . 1 . 3 Max Gunslinging Chain 1 | . 1 . 1 Shots Hit Robots 98 | 15 42 19 22 Core Hits 55 | 7 19 16 13 Critical Kills . | . . . . Critical Parts Destroyed 1 | . 1 . . Critical Strikes 1 | . 1 . . Destroy 1 | . 1 . . Melee Attacks . | . . . . Impact . | . . . . Slashing . | . . . . Piercing . | . . . . Sneak Attacks . | . . . . Combat Hostiles . | . . . . Follow-up Attacks . | . . . . Damage Inflicted 1086 | 133 331 163 459 Guns 1086 | 133 331 163 459 Cannons . | . . . . Explosions . | . . . . Melee . | . . . . Ramming . | . . . . Kinetic 1086 | 133 331 163 459 Thermal . | . . . . Explosive . | . . . . Electromagnetic . | . . . . Impact . | . . . . Slashing . | . . . . Piercing . | . . . . Highest Corruption 3 | . . . 3 Average Corruption 3 | . . . 3 Corruption Purged . | . . . . Corruption Blocked . | . . . . Overload Shots . | . . . . Overflow Damage . | . . . . Projectiles . | . . . . Explosions . | . . . . Melee . | . . . . Knockbacks . | . . . . Impact . | . . . . Kinetic . | . . . . Secondary . | . . . . Self-Inflicted Damage 51 | . 51 . . Shots 1 | . 1 . . Rammed . | . . . . Targets Rammed . | . . . . Kicked . | . . . . Crushed . | . . . . Highest Temperature 24 | . 24 16 9 Average Temperature 11 | . 11 16 5 Received Heat Transfer 183 | . 99 61 23 Siege Activations . | . . . . Robots Corrupted . | . . . . Combat Hostiles . | . . . . Parts Fried . | . . . . Impact Corruptions . | . . . . Robots Melted . | . . . . Combat Hostiles . | . . . . Parts Melted . | . . . . Heat Transferred . | . . . . Parts Sabotaged . | . . . . Parts Stolen . | . . . . Parts Stripped . | . . . . Power Chain Reactions . | . . . . Alert | -11 -10 -9 -9 ------- Run | Yrd Mat Mat Min Peak Influence 299 | 20 259 299 166 Initial 116 | . 13 109 116 Average 140 | 8 137 210 149 Maximum Alert Level 1 | . 1 1 . Low Security (%) 79 | 100 80 44 100 Level 1 20 | . 19 55 . Level 2 . | . . . . Level 3 . | . . . . Level 4 . | . . . . Level 5 . | . . . . High Security . | . . . . Max Security . | . . . . Squads Dispatched 1 | . . 1 . Investigation 1 | . . 1 . Extermination . | . . . . Reinforcement . | . . . . Assault . | . . . . Garrison . | . . . . Intercept . | . . . . Searches Triggered . | . . . . Construction Impeded . | . . . . Haulers Reinforced . | . . . . Active Scanning Responses . | . . . . Cargo Convoy Interrupts . | . . . . Stealth | -11 -10 -9 -9 --------- Run | Yrd Mat Mat Min Distress Signals 3 | . 2 1 . Communications Jammed . | . . . . Distress Signals . | . . . . Times Spotted 43 | . 10 13 20 Peak Tracking Total 16 | . 4 5 16 Tactical Retreats 2 | . . . 2 Traps | -11 -10 -9 -9 ------- Run | Yrd Mat Mat Min Traps Triggered 1 | . . 1 . Indirectly . | . . . . Trap Hack Attempts . | . . . . Triggered . | . . . . Disarmed . | . . . . Reprogrammed . | . . . . Reused . | . . . . Traps Extracted . | . . . . Installed . | . . . . Triggered . | . . . . Machines | -11 -10 -9 -9 ---------- Run | Yrd Mat Mat Min Machines Disabled 2 | . 2 . . Max in Single Turn 2 | . 2 . . Machines Repaired . | . . . . Machines Dismantled . | . . . . Machines Sabotaged . | . . . . Overloaded Fab Kills . | . . . . Hacking | -11 -10 -9 -9 --------- Run | Yrd Mat Mat Min Machines Accessed 3 | . 3 . . Terminals 3 | . 3 . . Fabricators . | . . . . Repair Stations . | . . . . Recycling Units . | . . . . Scanalyzers . | . . . . Garrison Access . | . . . . Total Hacks 10 | . 10 . . Successful 3 | . 3 . . Failed 7 | . 7 . . Catastrophic 2 | . 2 . . Database Lockouts . | . . . . Manual 10 | . 10 . . Terminals 10 | . 10 . . Fabricators . | . . . . Repair Stations . | . . . . Recycling Units . | . . . . Scanalyzers . | . . . . Garrison Access . | . . . . Terminal Hacks . | . . . . Fabricator Hacks . | . . . . Repair Station Hacks . | . . . . Recycling Unit Hacks . | . . . . Scanalyzer . | . . . . Garrison Access Hacks . | . . . . Unauthorized Hacks 3 | . 3 . . Terminals 3 | . 3 . . Botnet 3 | . 3 . . Fabricators . | . . . . Repair Stations . | . . . . Recycling Units . | . . . . Scanalyzers . | . . . . Garrison Access . | . . . . Data Cores Recovered . | . . . . Used . | . . . . Hacking Detections 2 | . 2 . . Full Trace Events . | . . . . Feedback Events . | . . . . Feedback Blocked . | . . . . Robot Schematics Acquired . | . . . . Robots Built . | . . . . Authchips . | . . . . Time . | . . . . Total Robot Build Rating . | . . . . Part Schematics Acquired . | . . . . Parts Built . | . . . . Authchips . | . . . . Time . | . . . . Total Part Build Rating . | . . . . Parts Repaired . | . . . . Time . | . . . . Parts Recycled . | . . . . Recycled Matter . | . . . . Retrieved Matter . | . . . . Retrieved Components . | . . . . Parts Scanalyzed . | . . . . Part Schematics Acquired . | . . . . Parts Damaged . | . . . . Bothacking | -11 -10 -9 -9 ------------ Run | Yrd Mat Mat Min Used RIF Installer . | . . . . Robots Hacked . | . . . . Non-combat . | . . . . Combat . | . . . . Robot Hacks Applied . | . . . . Relay Couplers Released . | . . . . Fabnet Peak Effective % . | . . . . Robots Rewired . | . . . . Allies Hacked . | . . . . Hacks Repelled . | . . . . Allies | -11 -10 -9 -9 -------- Run | Yrd Mat Mat Min Total Allies . | . . . . Largest Group . | . . . . Highest-Rated Group . | . . . . Highest-Rated Ally . | . . . . Total Orders . | . . . . Ally Attacks . | . . . . Total Damage . | . . . . Kills . | . . . . Allies Corrupted . | . . . . Allies Melted . | . . . . Intel | -11 -10 -9 -9 ------- Run | Yrd Mat Mat Min Robot Analysis Total . | . . . . Derelict Logs Recovered 1 | . . . 1 Drone Launches . | . . . . Drone Recoveries . | . . . . Exploration | -11 -10 -9 -9 ------------- Run | Yrd Mat Mat Min Turns Passed 868 | 123 306 217 222 Spaces Moved 517 | 75 215 124 103 Core 3 | 3 . . . Treads 1 | 1 . . . Legs . | . . . . Wheels 513 | 71 215 124 103 Hover . | . . . . Flight . | . . . . Fastest Speed 50 | 50 100 115 95 Average Speed 109 | 98 100 118 123 Slowest Speed 160 | 160 115 130 130 Overloaded Moves . | . . . . Propulsion Burnouts . | . . . . Robots Hopped . | . . . . Cave-ins Triggered . | . . . . Exploration Rate (%) 22 | 5 43 17 23 Regions Visited 3 Branch Regions 1 Pre-discovered Areas . | . . . . Known Exits Taken . | . . . . Unknown Exits Taken 3 | 1 1 1 . Scrap Searched 1 | . . . 1 Spaces Dug . | . . . . Terrain Destroyed 34 | . 34 . . Melee . | . . . . Projectile . | . . . . AOE 34 | . 34 . . Terrain Rammed . | . . . . Walls Destroyed . | . . . . Machines Disabled . | . . . . Actions | -11 -10 -9 -9 --------- Run | Yrd Mat Mat Min Total 692 | 100 254 174 164 Wait 60 | . 2 22 36 Move 514 | 74 214 123 103 Hop . | . . . . Pick Up 18 | 6 3 9 . Fast Attach 9 | 7 . 1 1 Attach 8 | . . 3 5 Detach . | . . . . Swap 3 | 1 1 1 . Drop 2 | . 2 . . Fire 78 | 12 32 15 19 Melee . | . . . . Ram . | . . . . Kick . | . . . . Crush . | . . . . Escape Stasis . | . . . . Rewire . | . . . . Trap . | . . . . Miscellaneous . | . . . . Route ------- -11/Scrapyard -10/Materials -9/Materials -9/Mines History --------- Turn | Location | Event 18 | -11/Scrapyard | Discovered new exit (range 16) 124 | -11/Scrapyard | Entered Materials 315 | -10/Materials | Build established: Mutant 409 | -10/Materials | Discovered new exit (range 9) 430 | -10/Materials | Entered another Materials area 430 | -9/Materials | Evolved 2 slots: Utility x2 570 | -9/Materials | Lost 3 parts (1p1n1w) 581 | -9/Materials | Discovered new exit (range 10) 647 | -9/Materials | Entered Mines 652 | -9/Mines | Met a Derelict bent on vengeance 791 | -9/Mines | Assembled infested the area 796 | -9/Mines | Assisted by a Guerilla fighting off Assembled 854 | -9/Mines | Core integrity fell below 50% 858 | -9/Mines | Core integrity fell below 20% 869 | -9/Mines | Destroyed by D-53 Grenadier with Mini Grenade Launcher Last Messages --------------- 00831_ Acquired 8 matter. 00832_ Acquired 11 matter. 00833_ Acquired 61 matter. 00836_ Acquired 10 matter. 00838_ Acquired 2 matter. 00842_ Acquired 8 matter. 00843_ D-53 Grenadier suffers critical hit (Burn). 00844_ Shield Generator destroyed. 00845_ NF-U2P(g) destroyed. 00848_ The unstable cave ceiling collapses. 00851_ R-06 Scavenger collects Sml. Storage Unit. 00851_ Lgt. Assault Rifle destroyed. 00853_ Deuterium Engine destroyed. 00854_ The unstable cave ceiling collapses. 00855_ Shield Generator destroyed. 00855_ Hpw. Shotgun destroyed. 00855_ Wheel destroyed. 00856_ The unstable cave ceiling collapses. Map ----- +----------------------------------------------------+ | ????????????????????????????????????????? | | ????????????????????????????????????????? | | ????????????????????????????????????????? | | ????????????????????????????????????????? | | ????????????????????????????????????????? | | ????????????????????????????????????????? | | ????????????????????????????????????????? | | ????????????????????????????????????????? | | ????????????????????????????????????????? | | ????????????????????????????????????????? | | ????????????????????????????????????????? | | ????????????????????????????????????????? | | ????????????????????????????????????????? | | ????????????????????????????????????????? | | ????????????????????????????????????????? | | ????????????????????????????????????????? | | ????????????????????????????????????????? | | ????????????????????????????????????????? | | ????????????????????????????????????????? | | ????#???????????????????????????????????? | | ????# ?????????????????????????????????? | | ????# ???????????????????????????????? | | ?????# ??????????#######????????????? | | ??????# ???????## # ##???????????? | | ??????# ###### ###?????????? | | ??????# @ ;#?????????? | | ?????# ##????????? | | ????# ######## d ##?#?????? | | ????# ?????????# #d # #?????? | | ????# ???????????# #?????? | | ????## ?????????????# % ##?? ? | | ???????????????????# # # | | ???????????????##### ##? | | ???????????????#" ## # | | ???????????????# ## # | | ???????????????# #" % | | ???????????????# ## # # | | ???????????????## # #?#?? | | ???????????????## % #### ??? | | ???????????????# ##???# #?? | | ???????# ####??# #?????#?? | | ???????# ### #???????? | | ???????????# #???????? | | ???????????# ##???????? | | ???????????## ##### ### ##????????? | | ????????????# #???## ##?? ##?????????? | | ????????????# #????####??# #??????????? | | ????????????# ########### #??????????? | | ????????????# #??????????? | | ????????????########### ## ##??????????? | +----------------------------------------------------+ Best States ------------- Heat Dissipation 28 Energy Generation 14 Energy Capacity 275 Matter Stores 300 Matter Capacity 300 Sight Range 16 Terrain Scan Density 10 Evasion (%) 40 Item Schematics ----------------- None Robot Schematics ------------------ None Fabricated ------------ Nothing Alien Tech Used ----------------- None Achievements -------------- None Challenges ------------ None Game ------ Seed TransportShockRouter Manual? 0 Play Time 00:10:27 Cumulative 24.2 hours Start 2024.05.05 @ 17:53:28 End 2024.05.05 @ 18:06:27 Sessions 1 Manual Loads 0 Difficulty Rogue Special Mode None Game No. 47 Rogue 47 Adventurer 0 Explorer 0 Win Type - Total 0 Types 0/0/0/0/0/0/0/0/0 Lore% 22 Gallery% 29 Achievement% 26 Wizard Run 0 Options --------- Layout 1 ASCII 0 Keyboard 0 Movement Vi Keybinds 0 Fullscreen 2 Font 24/Smallcaps Map View 50x35 Zoom Use 0% Tactical HUD 1 Map Filters NONE Filters NONE Steam 1 RUN: d201520a-78f0-4a1b-a4fb-8d33e475390b